[Event "EYCC Open-U16 2019"]
[Site "Bratislava"]
[Date "2019.08.04"]
[Round "3.20"]
[White "Marn, Jan"]
[Black "Tsoi, Dmitry"]
[Result "1-0"]
[ECO "A90"]
[WhiteElo "2215"]
[BlackElo "2314"]
[Annotator "NA"]
[PlyCount "153"]
[EventDate "2019.08.02"]
[EventType "swiss"]
[EventCountry "SVK"]
[SourceTitle "playchess.com"]
[Source "ChessBase"]
[SourceQuality "1"]
[TimeControl "40/5400+30:1800+30"]

1. d4 {[%emt 0:00:00]} f5 {[%emt 0:00:00]} 2. c4 {[%emt 0:00:00]} Nf6 {[%emt 0:00:00]} 3. g3 {[%emt 0:00:06]} e6 {[%emt 0:00:00]} 4. Bg2 {[%emt 0:00:07]} d5 {[%emt 0:00:00]} 5. Qc2 {[%emt 0:00:21]} c6 {[%emt 0:00:00]} 6. Nh3 {[%emt 0:00:25]} Bd6 {[%emt 0:00:07]} 7. Bf4 {[%emt 0:01:14]} O-O {[%emt 0:00:14]} 8. O-O {[%emt 0:00:11]} Ne4 {[%emt 0:00:41]} 9. Nd2 {[%emt 0:07:11]} Qe7 {[%emt 0:02:45]} 10. Nf3 {[%emt 0:07:17]} Nd7 {[%emt 0:00:28]} 11. Bxd6 {[%emt 0:01:24]} Nxd6 {[%emt 0:00:07]} 12. b3 {[%emt 0:01:37]} dxc4 {[%emt 0:01:03]} 13. bxc4 {[%emt 0:00:22]} e5 {[%emt 0:00:06]} 14. dxe5 {[%emt 0:12:53]} Nxe5 {[%emt 0:00:54]} 15. Nxe5 {[%emt 0:01:36]} Qxe5 {[%emt 0:00:10]} 16. Nf4 {[%emt 0:02:39]} Be6 {[%emt 0:01:46]} 17. c5 {[%emt 0:05:01]} Nb5 {[%emt 0:00:16]} 18. e3 {[%emt 0:11:10]} Rad8 {[%emt 0:03:46]} 19. a4 {[%emt 0:02:20]} Nc7 {[%emt 0:00:10]} 20. e4 {[%emt 0:07:19]} Rd4 {[%emt 0:09:48]} 21. exf5 {[%emt 0:03:29]} Qxf5 {[%emt 0:02:01]} 22. Qb2 {[%emt 0:02:13]} Rxf4 {[%emt 0:03:55]} 23. gxf4 {[%emt 0:00:05]} Qxf4 {[%emt 0:04:08]} 24. Ra3 {[%emt 0:02:55]} Nd5 {[%emt 0:17:24]} 25. Qxb7 {[%emt 0:10:32]} Qd4 {[%emt 0:01:32]} 26. Qxc6 {[%emt 0:01:29]} Nf4 {[%emt 0:00:06]} 27. Qd6 {[%emt 0:03:37]} Qc4 {[%emt 0:02:15]} 28. Re3 {[%emt 0:03:17]} Bf5 {[%emt 0:03:58]} 29. Rfe1 {[%emt 0:03:49]} h5 {[%emt 0:05:43]} 30. Bf1 {[%emt 0:03:56]} Qxa4 {[%emt 0:01:28]} 31. c6 {[%emt 0:02:09]} Rf6 {[%emt 0:00:47]} 32. Ra3 {[%emt 0:03:16]} Rxd6 {[%emt 0:04:09]} 33. Rxa4 {[%emt 0:00:04]} Rg6+ {[%emt 0:00:05]} 34. Kh1 {[%emt 0:00:06]} Nh3 {[%emt 0:00:13]} 35. Bxh3 {[%emt 0:01:21]} Bxh3 {[%emt 0:00:01]} 36. Rg1 {[%emt 0:00:09]} Rxc6 {[%emt 0:00:07]} 37. Rxa7 {[%emt 0:00:19]} g6 {[%emt 0:01:45]} 38. Rb1 {[%emt 0:01:48]} Rc8 {[%emt 0:00:05]} 39. f4 {[%emt 0:01:04]} Rf8 {[%emt 0:01:12]} 40. Rb3 {[%emt 0:00:00]} Be6 {[%emt 0:00:00]} 41. Rb4 {[%emt 0:02:16]} Bh3 {[%emt 0:02:57]} 42. Kg1 {[%emt 0:02:44]} h4 {[%emt 0:00:34]} 43. Kf2 {[%emt 0:00:45]} g5 {[%emt 0:02:31]} 44. Ra5 {[%emt 0:02:00]} Rxf4+ {[%emt 0:00:15]} 45. Rxf4 {[%emt 0:00:10]} gxf4 {[%emt 0:00:03]} 46. Rh5 {[%emt 0:00:33]} Kg7 {[%emt 0:00:05]} 47. Rxh4 {[%emt 0:00:06]} Bf5 {[%emt 0:00:04]} 48. Rxf4 {[%emt 0:00:09]} Bc2 {[%emt 0:00:05]} 49. Rc4 {[%emt 0:00:09]} Bd3 {[%emt 0:00:05]} 50. Rc6 {[%emt 0:00:04]} Be4 {[%emt 0:00:06]} 51. Rb6 {[%emt 0:00:08]} Bd3 {[%emt 0:00:09]} 52. Ke3 {[%emt 0:01:45]} Bc2 {[%emt 0:00:23]} 53. Kf4 {[%emt 0:00:04]} Bd3 {[%emt 0:00:05]} 54. Kg5 {[%emt 0:00:05]} Bc2 {[%emt 0:00:05]} 55. Rb7+ {[%emt 0:01:13]} Kg8 {[%emt 0:01:46]} 56. Kh6 {[%emt 0:00:32]} Bd3 {[%emt 0:00:13]} 57. Rg7+ {[%emt 0:00:41]} Kf8 {[%emt 0:00:48]} 58. Rg5 {[%emt 0:04:26]} Kf7 {[%emt 0:01:55]} 59. Kh5 {[%emt 0:02:40]} Be2+ {[%emt 0:00:40]} 60. Kh4 {[%emt 0:03:22]} Kf6 {[%emt 0:00:34]} 61. Rg1 {[%emt 0:01:48]} Bd3 {[%emt 0:00:26]} 62. Rg8 {[%emt 0:00:49]} Bg6 {[%emt 0:00:22]} 63. Kg4 {[%emt 0:01:10]} Kf7 {[%emt 0:00:06]} 64. Ra8 {[%emt 0:00:07]} Bd3 {[%emt 0:00:53]} 65. Kg5 {[%emt 0:00:36]} Kg7 {[%emt 0:00:07]} 66. Ra7+ {[%emt 0:00:09]} Kh8 {[%emt 0:01:51]} 67. Kh6 {[%emt 0:08:22]} Bc4 {[%emt 0:00:19]} 68. h4 {[%emt 0:00:52]} Bd5 {[%emt 0:00:56]} 69. h5 {[%emt 0:05:37]} Bc4 {[%emt 0:00:36]} 70. Ra8+ {[%emt 0:00:26]} Bg8 {[%emt 0:00:02]} 71. Kg5 {[%emt 0:00:08]} Kg7 {[%emt 0:01:42]} 72. h6+ {[%emt 0:00:26]} Kh8 {[%emt 0:00:05]} 73. Rc8 {[%emt 0:00:09]} Kh7 {[%emt 0:00:04]} 74. Rc7+ {[%emt 0:00:08]} Kh8 {[%emt 0:00:03]} 75. Kg6 {[%emt 0:00:14]} Bd5 {[%emt 0:00:27]} 76. h7 {[%emt 0:00:43]} Be4+ {[%emt 0:00:12]} 77. Kh6 {[%emt 0:00:06]} 1-0

[Event "EYCC Open-U16 2019"]
[Site "Bratislava"]
[Date "2019.08.04"]
[Round "3.21"]
[White "Geher, Koppany"]
[Black "Kazmin, Semen"]
[Result "1-0"]
[ECO "C75"]
[WhiteElo "2211"]
[BlackElo "2193"]
[Annotator "NA"]
[PlyCount "79"]
[EventDate "2019.08.02"]
[EventType "swiss"]
[EventCountry "SVK"]
[SourceTitle "playchess.com"]
[Source "ChessBase"]
[SourceQuality "1"]
[TimeControl "40/5400+30:1800+30"]

1. e4 {[%emt 0:00:00]} e5 {[%emt 0:00:00]} 2. Nf3 {[%emt 0:00:00]} Nc6 {[%emt 0:00:02]} 3. Bb5 {[%emt 0:00:00]} a6 {[%emt 0:00:07]} 4. Ba4 {[%emt 0:00:01]} d6 {[%emt 0:00:07]} 5. c3 {[%emt 0:01:26]} Bd7 {[%emt 0:00:40]} 6. O-O {[%emt 0:00:26]} g5 {[%emt 0:00:30]} 7. d4 {[%emt 0:06:22]} g4 {[%emt 0:00:08]} 8. Ne1 {[%emt 0:00:11]} h5 {[%emt 0:00:10]} 9. f4 {[%emt 0:03:42]} exd4 {[%emt 0:00:19]} 10. cxd4 {[%emt 0:01:42]} Bg7 {[%emt 0:00:09]} 11. Be3 {[%emt 0:06:48]} f5 {[%emt 0:00:12]} 12. Nc3 {[%emt 0:31:59]} b5 {[%emt 0:12:30]} 13. Bb3 {[%emt 0:02:56]} b4 {[%emt 0:10:31]} 14. Nd5 {[%emt 0:00:11]} Nge7 {[%emt 0:02:15]} 15. Rc1 {[%emt 0:02:51]} a5 {[%emt 0:11:10]} 16. e5 {[%emt 0:03:23]} a4 {[%emt 0:09:06]} 17. Bc4 {[%emt 0:00:46]} Ra5 {[%emt 0:03:54]} 18. Nxe7 {[%emt 0:05:11]} Nxe7 {[%emt 0:01:44]} 19. Qd2 {[%emt 0:06:50]} d5 {[%emt 0:05:11]} 20. Be2 {[%emt 0:00:00]} a3 {[%emt 0:05:01]} 21. b3 {[%emt 0:03:12]} Qb8 {[%emt 0:02:55]} 22. Nd3 {[%emt 0:00:12]} Rb5 {[%emt 0:00:20]} 23. Nc5 {[%emt 0:00:22]} Rb6 {[%emt 0:00:47]} 24. Na6 {[%emt 0:01:49]} Rxa6 {[%emt 0:01:27]} 25. Bxa6 {[%emt 0:02:05]} Qb6 {[%emt 0:00:52]} 26. Bd3 {[%emt 0:01:25]} Kf7 {[%emt 0:08:14]} 27. Rc5 {[%emt 0:00:23]} c6 {[%emt 0:01:01]} 28. Rfc1 {[%emt 0:00:37]} Rc8 {[%emt 0:03:25]} 29. h3 {[%emt 0:01:32]} Bf8 {[%emt 0:02:07]} 30. Qc2 {[%emt 0:02:43]} Kg6 {[%emt 0:01:39]} 31. Qf2 {[%emt 0:00:51]} Ng8 {[%emt 0:04:36]} 32. hxg4 {[%emt 0:07:03]} hxg4 {[%emt 0:00:58]} 33. R5c2 {[%emt 0:05:02]} Qd8 {[%emt 0:03:24]} 34. Qg3 {[%emt 0:01:36]} Nh6 {[%emt 0:00:15]} 35. Kf2 {[%emt 0:02:36]} Be7 {[%emt 0:05:57]} 36. Rh1 {[%emt 0:00:01]} Qb6 {[%emt 0:01:36]} 37. Rcc1 {[%emt 0:01:20]} Rh8 {[%emt 0:01:43]} 38. Rh2 {[%emt 0:00:39]} Bc8 {[%emt 0:01:27]} 39. Rch1 {[%emt 0:00:30]} Ba6 {[%emt 0:00:09]} 40. Rxh6+ {[%emt 0:00:00]} 1-0

[Event "EYCC Open-U16 2019"]
[Site "Bratislava"]
[Date "2019.08.04"]
[Round "3.22"]
[White "Olsen, Filip Boe"]
[Black "Gavrilin, Roman"]
[Result "1-0"]
[ECO "E08"]
[WhiteElo "2383"]
[BlackElo "2131"]
[Annotator "NA"]
[PlyCount "137"]
[EventDate "2019.08.02"]
[EventType "swiss"]
[EventCountry "SVK"]
[SourceTitle "playchess.com"]
[Source "ChessBase"]
[SourceQuality "1"]
[TimeControl "40/5400+30:1800+30"]

1. d4 {[%emt 0:00:00]} Nf6 {[%emt 0:00:00]} 2. c4 {[%emt 0:00:00]} e6 {[%emt 0:00:00]} 3. g3 {[%emt 0:00:15]} d5 {[%emt 0:01:10]} 4. Nf3 {[%emt 0:00:22]} Be7 {[%emt 0:00:08]} 5. Bg2 {[%emt 0:00:50]} O-O {[%emt 0:00:11]} 6. Qc2 {[%emt 0:00:48]} Nbd7 {[%emt 0:01:37]} 7. O-O {[%emt 0:00:38]} c6 {[%emt 0:00:15]} 8. b3 {[%emt 0:00:28]} b6 {[%emt 0:01:21]} 9. Rd1 {[%emt 0:04:39]} Bb7 {[%emt 0:00:53]} 10. Nc3 {[%emt 0:01:55]} Ba6 {[%emt 0:01:29]} 11. Nd2 {[%emt 0:04:50]} b5 {[%emt 0:09:49]} 12. e4 {[%emt 0:04:57]} dxc4 {[%emt 0:02:58]} 13. bxc4 {[%emt 0:02:41]} bxc4 {[%emt 0:01:52]} 14. Qa4 {[%emt 0:03:35]} Bb5 {[%emt 0:00:46]} 15. Nxb5 {[%emt 0:01:07]} Nb6 {[%emt 0:00:31]} 16. Qa6 {[%emt 0:00:57]} cxb5 {[%emt 0:00:28]} 17. d5 {[%emt 0:10:53]} exd5 {[%emt 0:11:37]} 18. Qxb5 {[%emt 0:00:59]} Rc8 {[%emt 0:12:26]} 19. exd5 {[%emt 0:03:09]} Qe8 {[%emt 0:31:26]} 20. Qa6 {[%emt 0:08:56]} Qa4 {[%emt 0:04:09]} 21. Qxa4 {[%emt 0:01:22]} Nxa4 {[%emt 0:00:05]} 22. Nf1 {[%emt 0:02:55]} Bd6 {[%emt 0:05:34]} 23. Bg5 {[%emt 0:05:53]} Be5 {[%emt 0:04:31]} 24. Rac1 {[%emt 0:00:48]} Nb2 {[%emt 0:01:03]} 25. Rd2 {[%emt 0:02:58]} Nd3 {[%emt 0:03:09]} 26. Rb1 {[%emt 0:04:22]} Rb8 {[%emt 0:01:06]} 27. Rxb8 {[%emt 0:03:09]} Rxb8 {[%emt 0:00:06]} 28. Bxf6 {[%emt 0:03:10]} Bxf6 {[%emt 0:03:05]} 29. Ne3 {[%emt 0:00:58]} Nb2 {[%emt 0:01:04]} 30. Rc2 {[%emt 0:01:21]} c3 {[%emt 0:00:38]} 31. d6 {[%emt 0:04:43]} Rd8 {[%emt 0:01:06]} 32. Nd5 {[%emt 0:00:27]} Rxd6 {[%emt 0:00:33]} 33. Nxc3 {[%emt 0:01:21]} Bxc3 {[%emt 0:00:22]} 34. Rxc3 {[%emt 0:00:14]} g6 {[%emt 0:00:38]} 35. Rc7 {[%emt 0:02:04]} a6 {[%emt 0:00:39]} 36. Bf1 {[%emt 0:00:58]} Nd3 {[%emt 0:00:43]} 37. Ra7 {[%emt 0:00:20]} Nc5 {[%emt 0:00:08]} 38. Bc4 {[%emt 0:00:21]} Rf6 {[%emt 0:00:04]} 39. f4 {[%emt 0:01:17]} Kg7 {[%emt 0:00:39]} 40. Kg2 {[%emt 0:00:00]} h6 {[%emt 0:00:00]} 41. Rc7 {[%emt 0:02:10]} Ne4 {[%emt 0:02:19]} 42. Bd3 {[%emt 0:01:46]} Re6 {[%emt 0:04:23]} 43. Bc4 {[%emt 0:01:34]} Rf6 {[%emt 0:00:08]} 44. Ra7 {[%emt 0:00:16]} Nc5 {[%emt 0:00:21]} 45. h4 {[%emt 0:00:50]} Kf8 {[%emt 0:02:12]} 46. Kf3 {[%emt 0:02:13]} g5 {[%emt 0:01:47]} 47. Rc7 {[%emt 0:01:10]} Ne6 {[%emt 0:02:06]} 48. Bxe6 {[%emt 0:01:16]} Rxe6 {[%emt 0:00:17]} 49. hxg5 {[%emt 0:00:31]} hxg5 {[%emt 0:00:14]} 50. f5 {[%emt 0:00:27]} Rd6 {[%emt 0:02:10]} 51. Kg4 {[%emt 0:00:32]} Kg7 {[%emt 0:00:59]} 52. Kxg5 {[%emt 0:00:28]} Rb6 {[%emt 0:00:48]} 53. Ra7 {[%emt 0:00:27]} Rc6 {[%emt 0:01:04]} 54. g4 {[%emt 0:01:40]} Rb6 {[%emt 0:02:26]} 55. a4 {[%emt 0:03:48]} Rd6 {[%emt 0:02:17]} 56. a5 {[%emt 0:00:41]} Rc6 {[%emt 0:00:07]} 57. Kh4 {[%emt 0:01:20]} Rh6+ {[%emt 0:07:42]} 58. Kg3 {[%emt 0:00:15]} Rc6 {[%emt 0:00:10]} 59. g5 {[%emt 0:00:19]} Rc5 {[%emt 0:02:29]} 60. Kg4 {[%emt 0:00:13]} Rc4+ {[%emt 0:05:58]} 61. Kh5 {[%emt 0:00:17]} Rf4 {[%emt 0:00:13]} 62. f6+ {[%emt 0:00:50]} Kg8 {[%emt 0:00:13]} 63. Rxa6 {[%emt 0:00:18]} Kh7 {[%emt 0:00:52]} 64. Ra7 {[%emt 0:00:10]} Kg8 {[%emt 0:00:27]} 65. a6 {[%emt 0:00:39]} Rf1 {[%emt 0:01:13]} 66. Rb7 {[%emt 0:00:38]} Rh1+ {[%emt 0:00:43]} 67. Kg4 {[%emt 0:00:04]} Rg1+ {[%emt 0:00:15]} 68. Kf4 {[%emt 0:00:05]} Rf1+ {[%emt 0:00:28]} 69. Ke4 1-0

[Event "EYCC Open-U16 2019"]
[Site "Bratislava"]
[Date "2019.08.04"]
[Round "3.23"]
[White "Remizov, Yaroslav"]
[Black "Silich, Yahor"]
[Result "1-0"]
[ECO "B37"]
[WhiteElo "2357"]
[BlackElo "2100"]
[Annotator "NA"]
[PlyCount "63"]
[EventDate "2019.08.02"]
[EventType "swiss"]
[EventCountry "SVK"]
[SourceTitle "playchess.com"]
[Source "ChessBase"]
[SourceQuality "1"]
[TimeControl "40/5400+30:1800+30"]

1. e4 {[%emt 0:00:00]} c5 {[%emt 0:00:00]} 2. Nf3 {[%emt 0:00:00]} Nc6 {[%emt 0:00:10]} 3. d4 {[%emt 0:00:00]} cxd4 {[%emt 0:00:10]} 4. Nxd4 {[%emt 0:00:00]} g6 {[%emt 0:00:35]} 5. c4 {[%emt 0:00:04]} Bg7 {[%emt 0:00:27]} 6. Nc2 {[%emt 0:00:08]} Nf6 {[%emt 0:00:54]} 7. Nc3 {[%emt 0:00:11]} O-O {[%emt 0:00:19]} 8. Be2 {[%emt 0:00:11]} d6 {[%emt 0:00:43]} 9. O-O {[%emt 0:00:13]} Nd7 {[%emt 0:00:53]} 10. Be3 {[%emt 0:00:33]} Nc5 {[%emt 0:00:53]} 11. f3 {[%emt 0:09:37]} a5 {[%emt 0:02:20]} 12. Qd2 {[%emt 0:18:51]} f5 {[%emt 0:07:26]} 13. Kh1 {[%emt 0:20:44]} Be5 {[%emt 0:09:32]} 14. Bh6 {[%emt 0:06:03]} Rf7 {[%emt 0:02:11]} 15. exf5 {[%emt 0:01:29]} gxf5 {[%emt 0:15:14]} 16. f4 {[%emt 0:04:31]} Bg7 {[%emt 0:11:49]} 17. Bg5 {[%emt 0:00:23]} Be6 {[%emt 0:05:31]} 18. Rae1 {[%emt 0:04:14]} a4 {[%emt 0:06:05]} 19. Nd5 {[%emt 0:03:42]} h6 {[%emt 0:06:29]} 20. Bh4 {[%emt 0:01:41]} Ne4 {[%emt 0:06:45]} 21. Qe3 {[%emt 0:09:07]} Bxb2 {[%emt 0:04:30]} 22. Bh5 {[%emt 0:08:04]} Rg7 {[%emt 0:01:04]} 23. Qh3 {[%emt 0:00:06]} Bd7 {[%emt 0:01:16]} 24. Nce3 {[%emt 0:02:40]} Nd4 {[%emt 0:05:37]} 25. a3 {[%emt 0:06:06]} Bc3 {[%emt 0:06:17]} 26. Nxe7+ {[%emt 0:01:23]} Rxe7 {[%emt 0:00:55]} 27. Nd5 {[%emt 0:00:20]} Bxe1 {[%emt 0:02:53]} 28. Nxe7+ {[%emt 0:00:59]} Kh7 {[%emt 0:00:04]} 29. Rxe1 {[%emt 0:02:21]} Be6 {[%emt 0:02:53]} 30. Rxe4 {[%emt 0:00:42]} fxe4 {[%emt 0:00:23]} 31. Qg3 {[%emt 0:00:17]} Nf5 {[%emt 0:00:41]} 32. Qg6+ {[%emt 0:00:04]} 1-0

[Event "EYCC Open-U16 2019"]
[Site "Bratislava"]
[Date "2019.08.04"]
[Round "3.24"]
[White "Gomez Carreno, Martin"]
[Black "Veiga, Jose Francisco R P N"]
[Result "1/2-1/2"]
[ECO "C91"]
[WhiteElo "2078"]
[BlackElo "2357"]
[Annotator "NA"]
[PlyCount "171"]
[EventDate "2019.08.02"]
[EventType "swiss"]
[EventCountry "SVK"]
[SourceTitle "playchess.com"]
[Source "ChessBase"]
[SourceQuality "1"]
[TimeControl "40/5400+30:1800+30"]

1. e4 {[%emt 0:00:00]} e5 {[%emt 0:00:00]} 2. Nf3 {[%emt 0:00:00]} Nc6 {[%emt 0:00:05]} 3. Bb5 {[%emt 0:00:00]} a6 {[%emt 0:00:24]} 4. Ba4 {[%emt 0:00:00]} Nf6 {[%emt 0:00:16]} 5. O-O {[%emt 0:00:11]} Be7 {[%emt 0:00:18]} 6. Re1 {[%emt 0:00:09]} b5 {[%emt 0:00:06]} 7. Bb3 {[%emt 0:00:07]} d6 {[%emt 0:00:03]} 8. c3 {[%emt 0:00:05]} O-O {[%emt 0:00:38]} 9. d4 {[%emt 0:01:09]} Bg4 {[%emt 0:00:28]} 10. Be3 {[%emt 0:00:22]} exd4 {[%emt 0:02:13]} 11. cxd4 {[%emt 0:00:12]} Na5 {[%emt 0:00:04]} 12. Bc2 {[%emt 0:00:18]} Nc4 {[%emt 0:00:05]} 13. Bc1 {[%emt 0:00:10]} c5 {[%emt 0:00:08]} 14. b3 {[%emt 0:00:17]} Nb6 {[%emt 0:00:08]} 15. Nbd2 {[%emt 0:00:30]} Rc8 {[%emt 0:00:41]} 16. Bb2 {[%emt 0:00:28]} Nfd7 {[%emt 0:00:50]} 17. Qb1 {[%emt 0:00:52]} cxd4 {[%emt 0:06:10]} 18. Nxd4 {[%emt 0:00:20]} Bg5 {[%emt 0:09:01]} 19. Nf1 {[%emt 0:14:48]} Ne5 {[%emt 0:02:40]} 20. h3 {[%emt 0:09:03]} Bd7 {[%emt 0:01:15]} 21. Qd1 {[%emt 0:05:18]} Re8 {[%emt 0:09:26]} 22. Ne3 {[%emt 0:02:21]} g6 {[%emt 0:08:01]} 23. Ba3 {[%emt 0:07:34]} Qf6 {[%emt 0:10:00]} 24. Bb4 {[%emt 0:05:35]} Nc6 {[%emt 0:27:17]} 25. Nxc6 {[%emt 0:13:37]} Rxc6 {[%emt 0:00:05]} 26. Ba5 {[%emt 0:01:29]} Bxe3 {[%emt 0:03:19]} 27. Rxe3 {[%emt 0:06:33]} Rxc2 {[%emt 0:00:21]} 28. Rf3 {[%emt 0:00:07]} Qb2 {[%emt 0:03:45]} 29. Rb1 {[%emt 0:03:06]} Qxa2 {[%emt 0:01:55]} 30. Ra1 {[%emt 0:00:09]} Qb2 {[%emt 0:00:09]} 31. Rb1 {[%emt 0:00:24]} Qa3 {[%emt 0:05:45]} 32. Qxc2 {[%emt 0:00:44]} Qxa5 {[%emt 0:00:01]} 33. b4 {[%emt 0:00:32]} Qa4 {[%emt 0:00:11]} 34. Qc7 {[%emt 0:00:15]} Qa2 {[%emt 0:02:13]} 35. Rf1 {[%emt 0:00:08]} Rxe4 {[%emt 0:02:33]} 36. Qxb6 {[%emt 0:00:08]} Re6 {[%emt 0:04:02]} 37. Rc3 {[%emt 0:08:19]} Qb2 {[%emt 0:01:51]} 38. Rc7 {[%emt 0:02:36]} Be8 {[%emt 0:00:01]} 39. Qa5 {[%emt 0:00:41]} d5 {[%emt 0:00:50]} 40. Ra7 {[%emt 0:00:00]} Qf6 {[%emt 0:00:00]} 41. Qa1 {[%emt 0:01:46]} Kg7 {[%emt 0:14:56]} 42. Rd1 {[%emt 0:04:13]} Rd6 {[%emt 0:00:45]} 43. Qd4 {[%emt 0:03:24]} Bd7 {[%emt 0:01:23]} 44. f3 {[%emt 0:02:58]} Bf5 {[%emt 0:01:46]} 45. Rc7 {[%emt 0:00:27]} Be6 {[%emt 0:02:15]} 46. Kf2 {[%emt 0:01:17]} Bf5 {[%emt 0:04:47]} 47. Rd2 {[%emt 0:02:58]} Be6 {[%emt 0:04:51]} 48. Ke3 {[%emt 0:01:45]} Bf5 {[%emt 0:03:46]} 49. Qxf6+ {[%emt 0:00:16]} Rxf6 {[%emt 0:00:30]} 50. Rxd5 {[%emt 0:01:43]} Re6+ {[%emt 0:01:10]} 51. Kf2 {[%emt 0:00:42]} Rb6 {[%emt 0:00:35]} 52. Rd2 {[%emt 0:01:22]} Be6 {[%emt 0:00:23]} 53. Rd8 {[%emt 0:03:48]} a5 {[%emt 0:00:20]} 54. bxa5 {[%emt 0:01:00]} Ra6 {[%emt 0:00:09]} 55. Re8 {[%emt 0:01:42]} Kf6 {[%emt 0:01:59]} 56. Ree7 {[%emt 0:01:07]} Rxa5 {[%emt 0:00:05]} 57. Ra7 {[%emt 0:00:41]} Rxa7 {[%emt 0:00:02]} 58. Rxa7 {[%emt 0:00:01]} b4 {[%emt 0:00:10]} 59. Rb7 {[%emt 0:02:50]} b3 {[%emt 0:00:03]} 60. Rb5 {[%emt 0:00:37]} Bc4 {[%emt 0:01:29]} 61. Rb4 {[%emt 0:00:13]} Be6 {[%emt 0:00:36]} 62. Ke3 {[%emt 0:00:58]} Ke7 {[%emt 0:00:15]} 63. Kd4 {[%emt 0:00:45]} Kf6 {[%emt 0:00:02]} 64. Rb5 {[%emt 0:02:56]} g5 {[%emt 0:01:46]} 65. Ke4 {[%emt 0:02:33]} Bc4 {[%emt 0:00:33]} 66. Rb6+ {[%emt 0:01:42]} Be6 {[%emt 0:00:03]} 67. g3 {[%emt 0:01:19]} Kg7 {[%emt 0:00:43]} 68. f4 {[%emt 0:00:35]} gxf4 {[%emt 0:00:27]} 69. gxf4 {[%emt 0:00:43]} Bxh3 {[%emt 0:00:17]} 70. Rxb3 {[%emt 0:00:07]} Bg4 {[%emt 0:00:45]} 71. f5 {[%emt 0:00:44]} Kf6 {[%emt 0:00:40]} 72. Rb6+ {[%emt 0:01:50]} Kg5 {[%emt 0:00:05]} 73. f6 {[%emt 0:01:03]} h5 {[%emt 0:00:39]} 74. Rb8 {[%emt 0:02:16]} Kxf6 {[%emt 0:00:15]} 75. Kf4 {[%emt 0:00:22]} Be6 {[%emt 0:01:04]} 76. Rh8 {[%emt 0:01:32]} Kg6 {[%emt 0:00:02]} 77. Rg8+ {[%emt 0:01:37]} Kf6 {[%emt 0:00:21]} 78. Rh8 {[%emt 0:00:38]} Bg4 {[%emt 0:00:02]} 79. Rh6+ {[%emt 0:00:39]} Kg7 {[%emt 0:00:02]} 80. Kg5 {[%emt 0:00:37]} f5 {[%emt 0:01:21]} 81. Ra6 {[%emt 0:00:20]} Kf7 {[%emt 0:00:04]} 82. Rf6+ {[%emt 0:00:37]} Ke7 {[%emt 0:00:08]} 83. Rxf5 {[%emt 0:00:12]} Bxf5 {[%emt 0:00:05]} 84. Kxf5 {[%emt 0:00:05]} h4 {[%emt 0:00:04]} 85. Kg4 {[%emt 0:00:04]} h3 {[%emt 0:00:05]} 86. Kxh3 {[%emt 0:00:02]} 1/2-1/2

[Event "EYCC Open-U16 2019"]
[Site "Bratislava"]
[Date "2019.08.04"]
[Round "3.25"]
[White "Vorisek, Jakub"]
[Black "Degraeve, Remy"]
[Result "1-0"]
[ECO "C95"]
[WhiteElo "2071"]
[BlackElo "2349"]
[Annotator "NA"]
[PlyCount "101"]
[EventDate "2019.08.02"]
[EventType "swiss"]
[EventCountry "SVK"]
[SourceTitle "playchess.com"]
[Source "ChessBase"]
[SourceQuality "1"]
[TimeControl "40/5400+30:1800+30"]

1. e4 {[%emt 0:00:00]} e5 {[%emt 0:00:00]} 2. Nf3 {[%emt 0:00:08]} Nc6 {[%emt 0:00:00]} 3. Bb5 {[%emt 0:00:28]} a6 {[%emt 0:00:00]} 4. Ba4 {[%emt 0:00:18]} Nf6 {[%emt 0:00:00]} 5. O-O {[%emt 0:00:42]} Be7 {[%emt 0:00:00]} 6. Re1 {[%emt 0:00:20]} b5 {[%emt 0:00:00]} 7. Bb3 {[%emt 0:00:20]} d6 {[%emt 0:00:00]} 8. c3 {[%emt 0:00:24]} O-O {[%emt 0:00:00]} 9. h3 {[%emt 0:00:19]} Nb8 {[%emt 0:00:00]} 10. d4 {[%emt 0:00:43]} Nbd7 {[%emt 0:00:00]} 11. Nbd2 {[%emt 0:00:31]} Bb7 {[%emt 0:00:00]} 12. Bc2 {[%emt 0:00:42]} Re8 {[%emt 0:00:04]} 13. Nf1 {[%emt 0:00:49]} Bf8 {[%emt 0:00:04]} 14. Ng3 {[%emt 0:00:22]} g6 {[%emt 0:00:03]} 15. a4 {[%emt 0:00:43]} Nb6 {[%emt 0:00:06]} 16. b3 {[%emt 0:01:12]} bxa4 {[%emt 0:00:04]} 17. bxa4 {[%emt 0:00:07]} a5 {[%emt 0:00:02]} 18. Bg5 {[%emt 0:18:08]} h6 {[%emt 0:07:08]} 19. Be3 {[%emt 0:09:53]} Ba6 {[%emt 0:09:49]} 20. Bd3 {[%emt 0:10:29]} Bxd3 {[%emt 0:06:39]} 21. Qxd3 {[%emt 0:00:07]} Qd7 {[%emt 0:00:40]} 22. Reb1 {[%emt 0:08:05]} Qc6 {[%emt 0:07:38]} 23. d5 Qc4 {[%emt 0:00:04]} 24. Qc2 {[%emt 0:05:17]} Nfd7 {[%emt 0:00:20]} 25. Rb5 {[%emt 0:04:55]} c6 {[%emt 0:10:10]} 26. Nd2 {[%emt 0:01:01]} cxb5 {[%emt 0:00:05]} 27. Nxc4 {[%emt 0:00:11]} Nxc4 {[%emt 0:01:40]} 28. axb5 {[%emt 0:04:15]} Reb8 {[%emt 0:01:11]} 29. Qb3 {[%emt 0:04:35]} Nxe3 {[%emt 0:00:20]} 30. fxe3 {[%emt 0:00:05]} Nc5 {[%emt 0:00:09]} 31. Qb2 {[%emt 0:07:07]} h5 {[%emt 0:00:19]} 32. c4 {[%emt 0:05:41]} Bh6 {[%emt 0:02:17]} 33. Qe2 {[%emt 0:03:48]} a4 {[%emt 0:02:08]} 34. Ra3 {[%emt 0:00:38]} Bg5 {[%emt 0:01:23]} 35. Qc2 {[%emt 0:09:05]} Rc8 {[%emt 0:10:56]} 36. Nf1 {[%emt 0:02:05]} Bd8 {[%emt 0:01:03]} 37. Ng3 {[%emt 0:02:16]} Bb6 {[%emt 0:01:38]} 38. Kf2 {[%emt 0:00:56]} Ra7 {[%emt 0:08:49]} 39. Ne2 {[%emt 0:00:56]} Ba5 {[%emt 0:00:20]} 40. Qb1 {[%emt 0:00:00]} Nd7 {[%emt 0:00:00]} 41. Nc3 {[%emt 0:12:25]} Nb6 {[%emt 0:07:01]} 42. Nxa4 {[%emt 0:02:26]} Nxa4 {[%emt 0:00:43]} 43. Rxa4 {[%emt 0:00:04]} Be1+ {[%emt 0:00:03]} 44. Kxe1 {[%emt 0:01:45]} Rxa4 {[%emt 0:00:06]} 45. b6 {[%emt 0:00:41]} Raxc4 {[%emt 0:00:33]} 46. b7 {[%emt 0:00:31]} Rb8 {[%emt 0:00:59]} 47. Qb6 {[%emt 0:00:12]} Rc2 {[%emt 0:07:39]} 48. Qa7 {[%emt 0:00:44]} Rxb7 {[%emt 0:00:05]} 49. Qxb7 {[%emt 0:00:04]} Kf8 {[%emt 0:00:02]} 50. Kd1 {[%emt 0:00:52]} Rc5 {[%emt 0:00:03]} 51. Qd7 {[%emt 0:00:31]} 1-0